[Event "*** SCC Grand Prix: Titled Tuesday Blitz"]
[Site "Chess.com"]
[Date "2020.08.11"]
[Round "1"]
[White "sertalzin"]
[Black "mortngabriel"]
[Result "0-1"]
[WhiteElo "1833"]
[BlackElo "2458"]
[TimeControl "180+1"]
[EndTime "10:06:23 PDT"]
[Termination "mortngabriel won on time"]

1. d4 {[%clk 0:02:46.3]} 1... Nf6 {[%clk 0:02:59.3]} 2. c4 {[%clk 0:02:41.3]}
2... e6 {[%clk 0:02:44.6]} 3. Nc3 {[%clk 0:02:39.9]} 3... Bb4 {[%clk 0:02:40.1]}
4. e3 {[%clk 0:02:38.8]} 4... O-O {[%clk 0:02:39.6]} 5. Ne2 {[%clk 0:02:36.1]}
5... d5 {[%clk 0:02:39.8]} 6. a3 {[%clk 0:02:35.1]} 6... Be7 {[%clk 0:02:40.4]}
7. cxd5 {[%clk 0:02:32]} 7... exd5 {[%clk 0:02:41.3]} 8. g3 {[%clk 0:02:31.5]}
8... Re8 {[%clk 0:02:40.1]} 9. Bg2 {[%clk 0:02:31.6]} 9... c6 {[%clk 0:02:40.7]}
10. O-O {[%clk 0:02:31.1]} 10... Nbd7 {[%clk 0:02:35.7]} 11. f3 {[%clk
0:02:29.3]} 11... c5 {[%clk 0:02:35.7]} 12. dxc5 {[%clk 0:01:52.3]} 12... Bxc5
{[%clk 0:02:24.8]} 13. Nd4 {[%clk 0:01:44.6]} 13... a6 {[%clk 0:02:20.7]} 14.
Re1 {[%clk 0:01:35.4]} 14... Ne5 {[%clk 0:02:17.8]} 15. b3 {[%clk 0:01:30.2]}
15... b5 {[%clk 0:02:03.4]} 16. Bb2 {[%clk 0:01:27.6]} 16... Qb6 {[%clk
0:02:03.2]} 17. Qd2 {[%clk 0:01:14]} 17... Bh3 {[%clk 0:01:45.2]} 18. Nce2
{[%clk 0:01:02.8]} 18... Bxg2 {[%clk 0:01:41.6]} 19. Kxg2 {[%clk 0:01:02.2]}
19... Rac8 {[%clk 0:01:40.8]} 20. Nf4 {[%clk 0:00:51]} 20... g5 {[%clk
0:01:31.8]} 21. Nd3 {[%clk 0:00:45.3]} 21... g4 {[%clk 0:01:19.5]} 22. Nxc5
{[%clk 0:00:41.1]} 22... Qxc5 {[%clk 0:01:19.4]} 23. Rac1 {[%clk 0:00:35.2]}
23... Qd6 {[%clk 0:01:04.8]} 24. f4 {[%clk 0:00:27.2]} 24... Ned7 {[%clk
0:00:57.9]} 25. Rxc8 {[%clk 0:00:21.2]} 25... Rxc8 {[%clk 0:00:57.7]} 26. Nf5
{[%clk 0:00:19.5]} 26... Qe6 {[%clk 0:00:55.9]} 27. Qd3 {[%clk 0:00:08.6]} 27...
Nc5 {[%clk 0:00:52.9]} 0-1

[Event "*** SCC Grand Prix: Titled Tuesday Blitz"]
[Site "Chess.com"]
[Date "2020.08.11"]
[Round "1"]
[White "MarcoRiehle"]
[Black "Ave_Mariia"]
[Result "1-0"]
[WhiteElo "2738"]
[BlackElo "2371"]
[TimeControl "180+1"]
[EndTime "10:06:26 PDT"]
[Termination "MarcoRiehle won by resignation"]

1. e4 {[%clk 0:02:57.4]} 1... c5 {[%clk 0:02:59.4]} 2. a3 {[%clk 0:02:57.2]}
2... Nc6 {[%clk 0:02:56.1]} 3. b4 {[%clk 0:02:56.8]} 3... cxb4 {[%clk
0:02:56.5]} 4. axb4 {[%clk 0:02:57.7]} 4... Nxb4 {[%clk 0:02:56.2]} 5. c3 {[%clk
0:02:58.1]} 5... Nc6 {[%clk 0:02:56.2]} 6. d4 {[%clk 0:02:58.7]} 6... e6 {[%clk
0:02:56.3]} 7. d5 {[%clk 0:02:57.3]} 7... exd5 {[%clk 0:02:39.7]} 8. exd5 {[%clk
0:02:58.2]} 8... Ne5 {[%clk 0:02:38.9]} 9. Nf3 {[%clk 0:02:49.8]} 9... Nxf3+
{[%clk 0:02:30.9]} 10. Qxf3 {[%clk 0:02:50.7]} 10... Nf6 {[%clk 0:02:30]} 11.
Bd3 {[%clk 0:02:49.7]} 11... d6 {[%clk 0:02:27.8]} 12. O-O {[%clk 0:02:49]}
12... Be7 {[%clk 0:02:27.9]} 13. Re1 {[%clk 0:02:45.8]} 13... O-O {[%clk
0:02:27.9]} 14. c4 {[%clk 0:02:39.5]} 14... Bg4 {[%clk 0:02:19.9]} 15. Qg3
{[%clk 0:02:36.2]} 15... Bh5 {[%clk 0:02:12.4]} 16. Bb2 {[%clk 0:02:30.8]} 16...
Bg6 {[%clk 0:02:10.7]} 17. Bxg6 {[%clk 0:02:29.7]} 17... hxg6 {[%clk 0:02:11.6]}
18. Nd2 {[%clk 0:02:29.9]} 18... Rc8 {[%clk 0:02:10.8]} 19. Rxa7 {[%clk
0:02:20.8]} 19... Qb6 {[%clk 0:02:09.8]} 20. Ra2 {[%clk 0:02:11.6]} 20... Nh5
{[%clk 0:02:03.7]} 21. Qe3 {[%clk 0:01:58.4]} 21... Qxe3 {[%clk 0:01:59.6]} 22.
fxe3 {[%clk 0:01:59.3]} 22... Bf6 {[%clk 0:01:59.1]} 23. Kf2 {[%clk 0:01:47.1]}
23... Rfe8 {[%clk 0:01:52.4]} 24. Rb1 {[%clk 0:01:39.1]} 24... Rc7 {[%clk
0:01:35.7]} 25. Ra7 {[%clk 0:01:25.4]} 25... Ree7 {[%clk 0:01:26.6]} 26. g4
{[%clk 0:01:04]} 26... Bxb2 {[%clk 0:01:24.5]} 27. Rxb2 {[%clk 0:01:01.5]} 27...
Nf6 {[%clk 0:01:24.5]} 28. Kf3 {[%clk 0:01:01.2]} 28... Nd7 {[%clk 0:01:19]} 29.
Ne4 {[%clk 0:00:31.2]} 29... Ne5+ {[%clk 0:01:15.8]} 30. Kg3 {[%clk 0:00:31]}
30... f5 {[%clk 0:00:53.8]} 31. Ra8+ {[%clk 0:00:25.9]} 31... Kf7 {[%clk
0:00:40.5]} 32. Ng5+ {[%clk 0:00:25.7]} 32... Kf6 {[%clk 0:00:37.5]} 33. Nh7+
{[%clk 0:00:25.8]} 1-0

[Event "*** SCC Grand Prix: Titled Tuesday Blitz"]
[Site "Chess.com"]
[Date "2020.08.11"]
[Round "1"]
[White "VishnuPrasanna"]
[Black "MNyuyu"]
[Result "1-0"]
[WhiteElo "2677"]
[BlackElo "2333"]
[TimeControl "180+1"]
[EndTime "10:06:29 PDT"]
[Termination "VishnuPrasanna won by resignation"]

1. d4 {[%clk 0:03:00.9]} 1... d5 {[%clk 0:02:59.6]} 2. c4 {[%clk 0:03:01.3]}
2... e6 {[%clk 0:02:58.9]} 3. Nf3 {[%clk 0:03:01.7]} 3... Be7 {[%clk 0:02:57.9]}
4. g3 {[%clk 0:03:02]} 4... Nf6 {[%clk 0:02:55.5]} 5. Bg2 {[%clk 0:03:02.5]}
5... O-O {[%clk 0:02:55.3]} 6. Qc2 {[%clk 0:03:02.4]} 6... c6 {[%clk 0:02:55]}
7. O-O {[%clk 0:03:01.5]} 7... Nbd7 {[%clk 0:02:55]} 8. Nbd2 {[%clk 0:03:02.1]}
8... a6 {[%clk 0:02:53.7]} 9. e4 {[%clk 0:03:02]} 9... dxe4 {[%clk 0:02:52.1]}
10. Nxe4 {[%clk 0:03:01.9]} 10... Nxe4 {[%clk 0:02:51.9]} 11. Qxe4 {[%clk
0:03:02.2]} 11... Nf6 {[%clk 0:02:51.6]} 12. Qe2 {[%clk 0:03:02.3]} 12... h6
{[%clk 0:02:50]} 13. Rd1 {[%clk 0:03:02.2]} 13... Qc7 {[%clk 0:02:42.9]} 14. Bf4
{[%clk 0:03:01.8]} 14... Bd6 {[%clk 0:02:42]} 15. Ne5 {[%clk 0:03:02.3]} 15...
Nd7 {[%clk 0:02:40.1]} 16. c5 {[%clk 0:02:56.7]} 16... Bxe5 {[%clk 0:02:38.4]}
17. Bxe5 {[%clk 0:02:57.1]} 17... Nxe5 {[%clk 0:02:37.7]} 18. Qxe5 {[%clk
0:02:48.7]} 18... Qxe5 {[%clk 0:02:37.3]} 19. dxe5 {[%clk 0:02:49.6]} 19... Re8
{[%clk 0:02:37.2]} 20. f4 {[%clk 0:02:48.9]} 20... g6 {[%clk 0:02:34.2]} 21. Kf2
{[%clk 0:02:49]} 21... Kf8 {[%clk 0:02:33.8]} 22. Rd6 {[%clk 0:02:49.2]} 22...
Ke7 {[%clk 0:02:33.4]} 23. Rad1 {[%clk 0:02:49.7]} 23... h5 {[%clk 0:02:32]} 24.
Bf1 {[%clk 0:02:48.7]} 24... Rb8 {[%clk 0:02:27.2]} 25. b3 {[%clk 0:02:47.8]}
25... Rh8 {[%clk 0:02:24.7]} 26. R1d4 {[%clk 0:02:46.5]} 26... Rf8 {[%clk
0:02:24]} 27. h3 {[%clk 0:02:46.2]} 27... Rh8 {[%clk 0:02:23.5]} 28. Be2 {[%clk
0:02:45.8]} 28... Rh7 {[%clk 0:02:22.2]} 29. Bf3 {[%clk 0:02:42.1]} 29... Rh8
{[%clk 0:02:21.5]} 30. Rd1 {[%clk 0:02:41.1]} 30... Rf8 {[%clk 0:02:20.6]} 31.
g4 {[%clk 0:02:40.7]} 31... hxg4 {[%clk 0:02:19.9]} 32. hxg4 {[%clk 0:02:41]}
32... Rh8 {[%clk 0:02:20]} 33. Kg3 {[%clk 0:02:41.5]} 33... Ra8 {[%clk
0:02:19.1]} 34. b4 {[%clk 0:02:39.5]} 34... Rb8 {[%clk 0:02:17.1]} 35. R6d2
{[%clk 0:02:27.8]} 35... Ra8 {[%clk 0:02:14.8]} 36. a4 {[%clk 0:02:24.8]} 36...
Rb8 {[%clk 0:02:13.3]} 37. Rb2 {[%clk 0:02:16.4]} 37... Bd7 {[%clk 0:02:12.7]}
38. Rd3 {[%clk 0:02:14.6]} 38... Rbd8 {[%clk 0:02:09.5]} 39. Rbd2 {[%clk
0:02:14.6]} 39... Bc8 {[%clk 0:02:08.2]} 40. Rxd8 {[%clk 0:02:14.8]} 40... Rxd8
{[%clk 0:02:07.4]} 41. Rxd8 {[%clk 0:02:15.3]} 41... Kxd8 {[%clk 0:02:07.3]} 42.
Kh4 {[%clk 0:02:15.9]} 42... Ke7 {[%clk 0:02:05.3]} 43. Kg5 {[%clk 0:02:16.3]}
43... Bd7 {[%clk 0:02:04.8]} 44. Kh6 {[%clk 0:02:08.4]} 44... Be8 {[%clk
0:01:58.2]} 45. Be4 {[%clk 0:02:08.7]} 45... Bd7 {[%clk 0:01:57.7]} 46. Kg7
{[%clk 0:02:03.4]} 46... Bc8 {[%clk 0:01:56.4]} 47. g5 {[%clk 0:01:42.2]} 47...
Bd7 {[%clk 0:01:53.9]} 48. Bxg6 {[%clk 0:01:42.8]} 48... fxg6 {[%clk 0:01:52.6]}
49. Kxg6 {[%clk 0:01:43.7]} 49... Be8+ {[%clk 0:01:48.2]} 50. Kh7 {[%clk
0:01:37.3]} 50... Kd7 {[%clk 0:00:51.2]} 51. g6 {[%clk 0:01:30.5]} 51... Kc7
{[%clk 0:00:50.6]} 52. a5 {[%clk 0:01:29]} 52... Kd7 {[%clk 0:00:46.4]} 53. g7
{[%clk 0:01:25.6]} 53... Bf7 {[%clk 0:00:46.3]} 54. g8=Q {[%clk 0:01:25.6]}
54... Bxg8+ {[%clk 0:00:45.8]} 55. Kxg8 {[%clk 0:01:26.5]} 55... Ke7 {[%clk
0:00:45.6]} 56. Kg7 {[%clk 0:01:27]} 56... Ke8 {[%clk 0:00:45.3]} 57. Kf6 {[%clk
0:01:26.5]} 1-0

[Event "*** SCC Grand Prix: Titled Tuesday Blitz"]
[Site "Chess.com"]
[Date "2020.08.11"]
[Round "1"]
[White "IngOscarArdila"]
[Black "CrushingKings"]
[Result "1-0"]
[WhiteElo "2185"]
[BlackElo "2515"]
[TimeControl "180+1"]
[EndTime "10:06:30 PDT"]
[Termination "IngOscarArdila won by resignation"]

1. d4 {[%clk 0:03:00.9]} 1... Nf6 {[%clk 0:02:58.5]} 2. c4 {[%clk 0:02:58.2]}
2... e6 {[%clk 0:02:58.9]} 3. Nc3 {[%clk 0:02:57.6]} 3... Bb4 {[%clk 0:02:59.5]}
4. Bd2 {[%clk 0:02:57.6]} 4... O-O {[%clk 0:02:58.8]} 5. e3 {[%clk 0:02:57.8]}
5... b6 {[%clk 0:02:58.5]} 6. Bd3 {[%clk 0:02:57.1]} 6... Bb7 {[%clk 0:02:58.7]}
7. f3 {[%clk 0:02:56.8]} 7... c5 {[%clk 0:02:57.7]} 8. Nge2 {[%clk 0:02:54.9]}
8... d5 {[%clk 0:02:54.8]} 9. cxd5 {[%clk 0:02:54]} 9... exd5 {[%clk 0:02:54.1]}
10. a3 {[%clk 0:02:53.1]} 10... Ba5 {[%clk 0:02:47.9]} 11. O-O {[%clk
0:02:51.2]} 11... Re8 {[%clk 0:02:47.8]} 12. Re1 {[%clk 0:02:47.8]} 12... Nc6
{[%clk 0:02:46.2]} 13. Nb5 {[%clk 0:02:29.7]} 13... a6 {[%clk 0:02:22]} 14. Bxa5
{[%clk 0:02:16.4]} 14... Nxa5 {[%clk 0:02:21.7]} 15. Nbc3 {[%clk 0:02:13.1]}
15... Rxe3 {[%clk 0:02:21.7]} 16. Qd2 {[%clk 0:02:09.1]} 16... Re8 {[%clk
0:02:07]} 17. Rad1 {[%clk 0:02:07.5]} 17... Nb3 {[%clk 0:02:02.3]} 18. Qf4
{[%clk 0:02:00.5]} 18... Qb8 {[%clk 0:01:58.1]} 19. Qf5 {[%clk 0:01:59.2]} 19...
cxd4 {[%clk 0:01:40.3]} 20. Nb1 {[%clk 0:01:52.3]} 20... Qd6 {[%clk 0:01:37.1]}
21. Nd2 {[%clk 0:01:49.1]} 21... Nxd2 {[%clk 0:01:22.7]} 22. Rxd2 {[%clk
0:01:48.8]} 22... Re3 {[%clk 0:01:18.5]} 23. Red1 {[%clk 0:01:47]} 23... Rae8
{[%clk 0:01:16.2]} 24. Nxd4 {[%clk 0:01:46.5]} 24... Qc5 {[%clk 0:01:16.4]} 25.
Qf4 {[%clk 0:01:34]} 25... Re1+ {[%clk 0:00:53.6]} 26. Kf2 {[%clk 0:01:23.5]}
26... Rxd1 {[%clk 0:00:44.7]} 27. Rxd1 {[%clk 0:01:23.6]} 27... Ne4+ {[%clk
0:00:42.6]} 28. Bxe4 {[%clk 0:01:09.1]} 28... dxe4 {[%clk 0:00:42.2]} 29. Kg3
{[%clk 0:00:58.5]} 29... exf3 {[%clk 0:00:34.1]} 30. gxf3 {[%clk 0:00:57.2]}
30... h6 {[%clk 0:00:31.8]} 31. Nf5 {[%clk 0:00:53.3]} 31... Re2 {[%clk
0:00:20.4]} 32. Rd8+ {[%clk 0:00:41]} 32... Kh7 {[%clk 0:00:20.3]} 33. Nd4
{[%clk 0:00:40.9]} 33... Qg5+ {[%clk 0:00:18]} 34. Qxg5 {[%clk 0:00:40.2]} 34...
hxg5 {[%clk 0:00:18.5]} 35. Nxe2 {[%clk 0:00:40.6]} 1-0

[Event "*** SCC Grand Prix: Titled Tuesday Blitz"]
[Site "Chess.com"]
[Date "2020.08.11"]
[Round "1"]
[White "realmadridtv"]
[Black "denispopov"]
[Result "1-0"]
[WhiteElo "2460"]
[BlackElo "1846"]
[TimeControl "180+1"]
[EndTime "10:06:31 PDT"]
[Termination "realmadridtv won by resignation"]

1. e4 {[%clk 0:03:00.9]} 1... c5 {[%clk 0:02:56.3]} 2. Nf3 {[%clk 0:03:01.2]}
2... Nc6 {[%clk 0:02:56]} 3. d4 {[%clk 0:03:00.4]} 3... cxd4 {[%clk 0:02:56.9]}
4. Nxd4 {[%clk 0:03:00.8]} 4... e5 {[%clk 0:02:57.4]} 5. Nb5 {[%clk 0:03:00.6]}
5... a6 {[%clk 0:02:57.4]} 6. Nd6+ {[%clk 0:03:00.3]} 6... Bxd6 {[%clk
0:02:57.4]} 7. Qxd6 {[%clk 0:03:01.2]} 7... Qf6 {[%clk 0:02:57.5]} 8. Qd1 {[%clk
0:02:58.3]} 8... Qg6 {[%clk 0:02:57.2]} 9. Nc3 {[%clk 0:02:57.5]} 9... d5 {[%clk
0:02:55.3]} 10. exd5 {[%clk 0:02:54.7]} 10... Nd4 {[%clk 0:02:53.1]} 11. Bd3
{[%clk 0:02:27]} 11... Qxg2 {[%clk 0:02:50.8]} 12. Be4 {[%clk 0:02:27.4]} 12...
Qh3 {[%clk 0:02:49.6]} 13. Be3 {[%clk 0:02:09.1]} 13... Bg4 {[%clk 0:02:24.5]}
14. Qd3 {[%clk 0:02:06.7]} 14... Nf3+ {[%clk 0:01:54.4]} 15. Bxf3 {[%clk
0:02:05.8]} 15... Bxf3 {[%clk 0:01:47.4]} 16. Rg1 {[%clk 0:02:01.4]} 16... g6
{[%clk 0:01:38]} 17. Rg3 {[%clk 0:01:36.3]} 17... Qh5 {[%clk 0:01:35.9]} 18. Kd2
{[%clk 0:01:08.9]} 18... Nf6 {[%clk 0:01:22]} 19. Bc5 {[%clk 0:00:59.7]} 19...
e4 {[%clk 0:01:14.5]} 20. Qd4 {[%clk 0:00:47.9]} 20... Qf5 {[%clk 0:01:09.6]}
21. Re1 {[%clk 0:00:42.7]} 21... O-O-O {[%clk 0:01:02.5]} 22. d6 {[%clk
0:00:35.6]} 22... Qf4+ {[%clk 0:00:37.6]} 23. Re3 {[%clk 0:00:34.3]} 23... Rhe8
{[%clk 0:00:26.4]} 24. Rxf3 {[%clk 0:00:30.6]} 1-0

[Event "*** SCC Grand Prix: Titled Tuesday Blitz"]
[Site "Chess.com"]
[Date "2020.08.11"]
[Round "1"]
[White "VitaliyBernadskiy"]
[Black "awesomevishesh"]
[Result "1-0"]
[WhiteElo "2742"]
[BlackElo "2373"]
[TimeControl "180+1"]
[EndTime "10:06:33 PDT"]
[Termination "VitaliyBernadskiy won by checkmate"]

1. e4 {[%clk 0:03:00.3]} 1... c5 {[%clk 0:02:55.9]} 2. Nc3 {[%clk 0:02:59.3]}
2... Nc6 {[%clk 0:02:53.6]} 3. g3 {[%clk 0:02:57.6]} 3... g6 {[%clk 0:02:52.9]}
4. Bg2 {[%clk 0:02:58]} 4... Bg7 {[%clk 0:02:52.3]} 5. Nge2 {[%clk 0:02:58.6]}
5... d6 {[%clk 0:02:51.3]} 6. O-O {[%clk 0:02:58.7]} 6... e6 {[%clk 0:02:48.6]}
7. f4 {[%clk 0:02:53.7]} 7... Nge7 {[%clk 0:02:48.1]} 8. h3 {[%clk 0:02:53.6]}
8... O-O {[%clk 0:02:47.1]} 9. g4 {[%clk 0:02:53.8]} 9... f5 {[%clk 0:02:22.2]}
10. Ng3 {[%clk 0:02:47.1]} 10... Nd4 {[%clk 0:02:09.3]} 11. d3 {[%clk 0:02:46]}
11... Rb8 {[%clk 0:02:08.9]} 12. a4 {[%clk 0:02:44.7]} 12... b6 {[%clk 0:01:46]}
13. Nce2 {[%clk 0:02:39.1]} 13... a6 {[%clk 0:01:39.5]} 14. c3 {[%clk
0:02:38.7]} 14... Nxe2+ {[%clk 0:01:34.8]} 15. Qxe2 {[%clk 0:02:39.6]} 15... d5
{[%clk 0:01:13.5]} 16. Bd2 {[%clk 0:02:34.4]} 16... Rf7 {[%clk 0:00:51.7]} 17.
Rae1 {[%clk 0:02:33.1]} 17... b5 {[%clk 0:00:37.7]} 18. axb5 {[%clk 0:02:32.2]}
18... axb5 {[%clk 0:00:38.3]} 19. Kh2 {[%clk 0:02:30.5]} 19... b4 {[%clk
0:00:32.3]} 20. gxf5 {[%clk 0:02:30.2]} 20... exf5 {[%clk 0:00:31.7]} 21. exd5
{[%clk 0:02:28.8]} 21... Nxd5 {[%clk 0:00:16.2]} 22. Qe8+ {[%clk 0:02:24.2]}
22... Rf8 {[%clk 0:00:16]} 23. Qc6 {[%clk 0:02:24.5]} 23... Nf6 {[%clk
0:00:07.8]} 24. Qxc5 {[%clk 0:02:18.7]} 24... Qxd3 {[%clk 0:00:07.5]} 25. Rd1
{[%clk 0:02:09.1]} 25... Bb7 {[%clk 0:00:07.1]} 26. Be3 {[%clk 0:02:00.5]} 26...
Qc2 {[%clk 0:00:06.6]} 27. Rd2 {[%clk 0:02:00.1]} 27... Qb3 {[%clk 0:00:06.3]}
28. Bxb7 {[%clk 0:01:50.9]} 28... Rxb7 {[%clk 0:00:06.7]} 29. Bd4 {[%clk
0:01:49.5]} 29... bxc3 {[%clk 0:00:05.9]} 30. bxc3 {[%clk 0:01:49.6]} 30... Ne4
{[%clk 0:00:03.7]} 31. Nxe4 {[%clk 0:01:48.6]} 31... fxe4 {[%clk 0:00:04.4]} 32.
Re2 {[%clk 0:01:45.1]} 32... Bxd4 {[%clk 0:00:04.2]} 33. Qxd4 {[%clk 0:01:44.8]}
33... Rc7 {[%clk 0:00:03.7]} 34. Re3 {[%clk 0:01:42.6]} 34... Rfc8 {[%clk
0:00:03]} 35. f5 {[%clk 0:01:33.5]} 35... Rxc3 {[%clk 0:00:01.7]} 36. fxg6
{[%clk 0:01:29.5]} 36... Rxe3 {[%clk 0:00:01.5]} 37. gxh7+ {[%clk 0:01:29.3]}
37... Kxh7 {[%clk 0:00:01.8]} 38. Qd7+ {[%clk 0:01:29.4]} 38... Kh6 {[%clk
0:00:02.2]} 39. Rf6+ {[%clk 0:01:28.6]} 39... Kg5 {[%clk 0:00:02]} 40. Qf5+
{[%clk 0:01:28.2]} 40... Kh4 {[%clk 0:00:01.8]} 41. Rh6# {[%clk 0:01:28.3]} 1-0

[Event "*** SCC Grand Prix: Titled Tuesday Blitz"]
[Site "Chess.com"]
[Date "2020.08.11"]
[Round "1"]
[White "Djager97"]
[Black "Fortitudine"]
[Result "1/2-1/2"]
[WhiteElo "2604"]
[BlackElo "2270"]
[TimeControl "180+1"]
[EndTime "10:06:33 PDT"]
[Termination "Game drawn by repetition"]

1. e4 {[%clk 0:03:00.9]} 1... c5 {[%clk 0:02:59.7]} 2. Nf3 {[%clk 0:03:00.9]}
2... d6 {[%clk 0:03:00.2]} 3. d4 {[%clk 0:03:01.5]} 3... cxd4 {[%clk 0:03:01.1]}
4. Nxd4 {[%clk 0:03:02.3]} 4... Nf6 {[%clk 0:03:01.7]} 5. Nc3 {[%clk 0:03:02.8]}
5... Nc6 {[%clk 0:03:02.3]} 6. Bg5 {[%clk 0:03:03.2]} 6... Bd7 {[%clk
0:03:02.4]} 7. Qd2 {[%clk 0:03:01.5]} 7... Rc8 {[%clk 0:03:02.5]} 8. O-O-O
{[%clk 0:02:58.6]} 8... Nxd4 {[%clk 0:03:02.2]} 9. Qxd4 {[%clk 0:02:58.4]} 9...
Qa5 {[%clk 0:03:02.8]} 10. f4 {[%clk 0:02:48.7]} 10... e5 {[%clk 0:02:48.4]} 11.
Qd2 {[%clk 0:02:30.8]} 11... Rxc3 {[%clk 0:02:37.6]} 12. Qxc3 {[%clk 0:02:09.6]}
12... Qxc3 {[%clk 0:02:35.7]} 13. bxc3 {[%clk 0:02:10.5]} 13... Nxe4 {[%clk
0:02:33.2]} 14. Bd3 {[%clk 0:02:04.4]} 14... Nf2 {[%clk 0:02:28.1]} 15. fxe5
{[%clk 0:01:57.5]} 15... Nxh1 {[%clk 0:02:27.3]} 16. Rxh1 {[%clk 0:01:58.4]}
16... dxe5 {[%clk 0:02:26.7]} 17. Be4 {[%clk 0:01:49.1]} 17... Bc6 {[%clk
0:01:51.1]} 18. Bxc6+ {[%clk 0:01:47]} 18... bxc6 {[%clk 0:01:52]} 19. Be3
{[%clk 0:01:35.7]} 19... Ba3+ {[%clk 0:01:38.4]} 20. Kd2 {[%clk 0:01:35.4]}
20... Kd7 {[%clk 0:01:28.3]} 21. Rb1 {[%clk 0:01:23.1]} 21... Ke6 {[%clk
0:01:18.3]} 22. Bxa7 {[%clk 0:01:13.5]} 22... Rd8+ {[%clk 0:01:15.6]} 23. Ke2
{[%clk 0:01:13.4]} 23... Ra8 {[%clk 0:01:02.8]} 24. Rb7 {[%clk 0:01:05.5]} 24...
h5 {[%clk 0:00:48.3]} 25. Be3 {[%clk 0:00:35.1]} 25... Bd6 {[%clk 0:00:35]} 26.
Ba7 {[%clk 0:00:28.3]} 26... Ba3 {[%clk 0:00:27.3]} 27. Be3 {[%clk 0:00:27.3]}
27... Bd6 {[%clk 0:00:26.9]} 28. Ba7 {[%clk 0:00:26.5]} 28... Ba3 {[%clk
0:00:26.9]} 1/2-1/2

[Event "*** SCC Grand Prix: Titled Tuesday Blitz"]
[Site "Chess.com"]
[Date "2020.08.11"]
[Round "1"]
[White "Sacbutt"]
[Black "davidkalashian"]
[Result "0-1"]
[WhiteElo "2217"]
[BlackElo "2579"]
[TimeControl "180+1"]
[EndTime "10:06:33 PDT"]
[Termination "davidkalashian won by checkmate"]

1. d4 {[%clk 0:03:00.8]} 1... Nf6 {[%clk 0:02:58.3]} 2. c4 {[%clk 0:03:00.8]}
2... e6 {[%clk 0:02:57.5]} 3. Nf3 {[%clk 0:03:00.7]} 3... b6 {[%clk 0:02:57]} 4.
g3 {[%clk 0:03:00.7]} 4... Ba6 {[%clk 0:02:56.5]} 5. b3 {[%clk 0:03:00.7]} 5...
Bb4+ {[%clk 0:02:55.7]} 6. Bd2 {[%clk 0:03:00.3]} 6... Be7 {[%clk 0:02:56.1]} 7.
Bg2 {[%clk 0:02:59.7]} 7... c6 {[%clk 0:02:56.5]} 8. O-O {[%clk 0:02:59]} 8...
d5 {[%clk 0:02:56.9]} 9. Qc2 {[%clk 0:02:56.6]} 9... O-O {[%clk 0:02:56]} 10.
Bf4 {[%clk 0:02:52.5]} 10... Nbd7 {[%clk 0:02:53.6]} 11. Rd1 {[%clk 0:02:50.5]}
11... Rc8 {[%clk 0:02:51.4]} 12. Nbd2 {[%clk 0:02:47.4]} 12... c5 {[%clk
0:02:40.8]} 13. dxc5 {[%clk 0:02:38.7]} 13... Bxc5 {[%clk 0:02:33.9]} 14. Qb2
{[%clk 0:01:56.6]} 14... Qe7 {[%clk 0:02:28.5]} 15. a3 {[%clk 0:01:45.2]} 15...
Ng4 {[%clk 0:02:18.3]} 16. Rf1 {[%clk 0:01:22.2]} 16... e5 {[%clk 0:02:08.3]}
17. Nxe5 {[%clk 0:00:57]} 17... Ngxe5 {[%clk 0:01:48.2]} 18. Bxd5 {[%clk
0:00:56.3]} 18... Ng6 {[%clk 0:01:43.9]} 19. b4 {[%clk 0:00:51.7]} 19... Nxf4
{[%clk 0:01:42.5]} 20. gxf4 {[%clk 0:00:51.9]} 20... Bd6 {[%clk 0:01:39.4]} 21.
e3 {[%clk 0:00:51.9]} 21... Nf6 {[%clk 0:01:36.4]} 22. Rfd1 {[%clk 0:00:43.1]}
22... Nxd5 {[%clk 0:01:34.8]} 23. cxd5 {[%clk 0:00:44]} 23... Qh4 {[%clk
0:01:31.5]} 24. Nf1 {[%clk 0:00:38.1]} 24... Bxf1 {[%clk 0:01:17.1]} 25. Rxf1
{[%clk 0:00:37.4]} 25... Qg4+ {[%clk 0:01:16.5]} 26. Kh1 {[%clk 0:00:37.7]}
26... Qf3+ {[%clk 0:01:16.8]} 27. Kg1 {[%clk 0:00:38.6]} 27... f5 {[%clk
0:01:16.2]} 28. Rfd1 {[%clk 0:00:24.3]} 28... Rf6 {[%clk 0:01:10.1]} 29. Kf1
{[%clk 0:00:24]} 29... Bxf4 {[%clk 0:01:01.1]} 30. exf4 {[%clk 0:00:21.1]} 30...
Re8 {[%clk 0:00:56.9]} 31. Rd2 {[%clk 0:00:04.3]} 31... Qh1# {[%clk 0:00:54.9]}
0-1